[Event "14th BPB Limburg Open 2022"]
[Site "Maastricht"]
[Date "2022.06.05"]
[Round "5.7"]
[White "Braun, Christian"]
[Black "Van Roon, Sjoerd"]
[Result "1/2-1/2"]
[ECO "A04"]
[WhiteElo "2426"]
[BlackElo "2264"]
[Annotator "TA"]
[PlyCount "55"]
[EventDate "2022.06.03"]
[EventType "swiss"]
[EventCountry "NED"]
[SourceTitle "playchess.com"]
[Source "ChessBase"]
[SourceQuality "1"]
[TimeControl "7200+15"]

{[%evp 16,55,4,-5,0,-4,18,0,0,0,0,0,0,0,0,0,0,0,16,0,11,-11,-3,-35,-32,-86,-60,-66,-44,-43,-39,-109,-88,-81,-81,-81,0,0,0,0,0,0]} 1. Nf3 {[%emt 0:00:04]} Nf6 {[%emt 0:00:37]} 2. g3 {[%emt 0:00:09]} b6 {[%emt 0:00:14]} 3. d3 {[%emt 0:00:12]} Bb7 {[%emt 0:00:21]} 4. e4 {[%emt 0:00:11]} g6 {[%emt 0:01:18]} 5. Bg2 {[%emt 0:00:24]} Bg7 {[%emt 0:00:32]} 6. O-O {[%emt 0:00:22]} O-O {[%emt 0:01:14]} 7. Re1 {[%emt 0:02:03]} d6 {[%emt 0:01:54]} 8. Nbd2 {[%emt 0:00:45][%cal Bb1d2,Bd2c4,Bc4e3][%mdl 32]} c5 {[%emt 0:01:07]} 9. a4 {[%emt 0:02:19]} Nc6 {[%emt 0:01:33] A04: Unusual lines after 1 Nf3 and King's Indian Attack.} 10. Nc4 {[%emt 0:01:57]} e5 {[%emt 0:02:29] [#]} 11. Bg5 $146 {[%emt 0:00:29]} ({Predecessor:} 11. h3 Qc7 12. c3 Ba6 13. Be3 Rab8 14. Na3 Rfe8 15. Nb5 Qd7 16. Qc2 Bb7 17. Rad1 {1-0 (41) Fabregas,O (1922)-Nergard,O (1507) Reykjavik 2019}) 11... h6 {[%emt 0:02:06]} 12. Bxf6 {[%emt 0:01:21]} Qxf6 {[%emt 0:03:12]} 13. Ne3 {[%emt 0:02:47]} Rae8 {[%emt 0:06:05]} 14. h4 {[%emt 0:03:27]} h5 {[%emt 0:05:17]} 15. c3 {[%emt 0:01:16]} Ne7 {[%emt 0:10:44]} 16. Qb3 {[%emt 0:01:48]} Rd8 {[%emt 0:02:04]} 17. Nd2 {[%emt 0:05:29]} Ba6 {[%emt 0:07:58]} 18. Ndc4 {[%emt 0:02:19]} Bh6 {[%emt 0:06:28]} 19. Rad1 {[%emt 0:00:16]} Qe6 {[%emt 0:00:47]} 20. Kh2 {[%emt 0:03:21]} (20. Nd2 $15) 20... Bxe3 {[%emt 0:05:33]} 21. Rxe3 {[%emt 0:00:31]} d5 {[%emt 0:01:07]} 22. exd5 {[%emt 0:06:01]} Nxd5 {[%emt 0:00:10]} 23. Bh3 {[%emt 0:15:47]} ({White should try} 23. Ree1 $15) 23... Bxc4 {[%emt 0:02:46]} 24. dxc4 {[%emt 0:01:19]} Nxe3 {[%emt 0:00:13]} 25. Bxe6 {[%emt 0:03:11]} Nxd1 {[%emt 0:03:17]} (25... Rxd1 $17 26. fxe3 Rd2+ 27. Kh3 fxe6) 26. Qc2 $11 {[%emt 0:00:06] [#] Intending Qxg6+ and mate. The position is equal.} fxe6 {[%emt 0:02:12]} 27. Qxg6+ {[%emt 0:01:55]} Kh8 {[%emt 0:00:04]} 28. Qh6+ {[%emt 0:10:08] Weighted Error Value: White=0.14 (very precise) /Black=0.13 (very precise)} 1/2-1/2

[Event "14th BPB Limburg Open 2022"]
[Site "Maastricht"]
[Date "2022.06.05"]
[Round "5.8"]
[White "Suvorov, Alexander"]
[Black "De Boer, Bas"]
[Result "1/2-1/2"]
[ECO "D32"]
[WhiteElo "2365"]
[BlackElo "2155"]
[Annotator "TA"]
[PlyCount "34"]
[EventDate "2022.06.03"]
[EventType "swiss"]
[EventCountry "NED"]
[SourceTitle "playchess.com"]
[Source "ChessBase"]
[SourceQuality "1"]
[TimeControl "7200+15"]

{[%evp 15,34,12,9,8,14,11,21,15,7,12,17,11,10,19,18,17,26,28,22,0,0]} 1. d4 {[%emt 0:00:02]} d5 {[%emt 0:00:08]} 2. c4 {[%emt 0:00:06]} e6 {[%emt 0:00:09]} 3. Nc3 {[%emt 0:00:11]} a6 {[%emt 0:00:07]} 4. cxd5 {[%emt 0:00:47]} exd5 {[%emt 0:00:09]} 5. Bf4 {[%emt 0:00:21]} Nf6 {[%emt 0:00:56]} 6. e3 {[%emt 0:00:42]} c5 {[%emt 0:00:56]} 7. dxc5 {[%emt 0:08:01]} Bxc5 {[%emt 0:00:22]} 8. Nf3 {[%emt 0:01:00]} Nc6 {[%emt 0:01:37]} 9. Be2 {[%emt 0:02:14][%cal Bf1e2,Be2f3,Bf3b7][%mdl 32] D32: Tarrasch Defence: Sidelines and lines without g3.} O-O {[%emt 0:00:16]} 10. O-O {[%emt 0:00:51]} d4 {[%emt 0:01:41]} 11. exd4 {[%emt 0:00:57]} Nxd4 {[%emt 0:00:13]} 12. Nxd4 {[%emt 0:00:58]} Bxd4 {[%emt 0:00:10]} 13. Bf3 {[%emt 0:05:36]} Qb6 {[%emt 0:03:56]} 14. Qb3 {[%emt 0:05:09]} Qxb3 {[%emt 0:07:22]} 15. axb3 {[%emt 0:00:38] [#]} Bg4 $146 {[%emt 0:02:33]} ({Predecessor:} 15... Be6 16. Bxb7 Ra7 17. Bf3 Bxb3 18. Ra3 Bc4 19. Rfa1 Rc8 20. Be2 Bxe2 21. Nxe2 Bc5 {0-1 (39) Rydzewski,P (1765)-Tamas,K (1885) Liptovsky Mikulas 2011}) 16. Bxb7 {[%emt 0:11:41]} Ra7 {[%emt 0:00:07]} 17. Bc6 {[%emt 0:17:51]} ({Much weaker is} 17. Bxa6 Bxc3 18. bxc3 Rfa8 $17) 17... Rc8 {[%emt 0:05:35] Not much happened in this game.  Weighted Error Value: White=0.03 (flawless) /Black=0.00 (flawless)} 1/2-1/2

[Event "14th BPB Limburg Open 2022"]
[Site "Maastricht"]
[Date "2022.06.05"]
[Round "5.9"]
[White "Kopylov, Daniel"]
[Black "Roorda, Thijs"]
[Result "1-0"]
[ECO "C02"]
[WhiteElo "2292"]
[BlackElo "2097"]
[Annotator "TA"]
[PlyCount "92"]
[EventDate "2022.06.03"]
[EventType "swiss"]
[EventCountry "NED"]
[SourceTitle "playchess.com"]
[Source "ChessBase"]
[SourceQuality "1"]
[TimeControl "7200+15"]

{[%evp 14,92,17,4,14,0,0,0,45,41,26,24,24,26,41,25,35,20,31,0,39,20,20,22,14,0,50,55,41,4,6,13,9,0,179,179,175,177,309,307,297,299,294,266,284,274,475,483,537,529,530,529,493,445,435,319,514,511,532,530,510,492,664,664,1541,1541,1444,1412,1008,1008,5197,5214,6416,6412,6359,6091,6086,6079,5727,5658,5531]} 1. e4 {[%emt 0:00:03]} e6 {[%emt 0:00:05]} 2. d4 {[%emt 0:00:08]} d5 {[%emt 0:00:05]} 3. e5 {[%emt 0:00:07]} c5 {[%emt 0:00:06]} 4. c3 {[%emt 0:00:05]} Nc6 {[%emt 0:00:05]} 5. Nf3 {[%emt 0:00:08]} Qb6 {[%emt 0:00:06]} 6. Na3 {[%emt 0:00:36]} cxd4 {[%emt 0:00:43]} 7. cxd4 {[%emt 0:00:11]} Bd7 {[%emt 0:11:52]} 8. Nc2 {[%emt 0:03:58]} Rc8 {[%emt 0:00:20] C02: French: Advance Variation.} 9. Be2 {[%emt 0:11:24]} Bb4+ {[%emt 0:05:58]} 10. Kf1 {[%emt 0:06:02] [#]} Na5 $146 {[%emt 0:02:36][%cal Od7b5] The position is equal.} (10... Be7 $5 {[%cal Rf7f6]}) ({Predecessor:} 10... Bf8 11. g3 Nge7 12. Kg2 Na5 13. h4 h5 14. b3 Bb5 15. Bg5 Nf5 16. Rc1 Bxe2 17. Qxe2 {1-0 (52) Triapishko,A (2478)-Ibadov,D (2292) Taganrog 2017}) 11. g3 {[%emt 0:06:46]} Ba4 {[%emt 0:14:29]} 12. b3 {[%emt 0:07:07]} Bb5 {[%emt 0:00:08]} 13. Kg2 {[%emt 0:03:44]} Nc6 {[%emt 0:10:01]} 14. Bxb5 {[%emt 0:15:13]} Qxb5 {[%emt 0:00:08]} 15. a4 {[%emt 0:00:14]} Qb6 {[%emt 0:02:26]} 16. Qd3 {[%emt 0:00:46]} Nge7 {[%emt 0:00:54]} 17. Nxb4 {[%emt 0:05:44]} (17. Qb5 $5 {[%cal Rc2b4]} Bc3 18. Ra2 $11) 17... Nxb4 {[%emt 0:02:40]} 18. Qb5+ {[%emt 0:01:17]} Nec6 {[%emt 0:18:48]} (18... Qxb5 $2 19. axb5 Nd3 20. Bd2 $16) 19. Bd2 {[%emt 0:02:51]} O-O {[%emt 0:03:14]} (19... Nc2 $1 $11) 20. Rhc1 {[%emt 0:02:26]} Na6 {[%emt 0:03:10] Prevents Rc5.} 21. b4 {[%emt 0:13:25]} Ncxb4 {[%emt 0:12:31]} 22. Rxc8 {[%emt 0:10:04]} Rxc8 {[%emt 0:00:05]} 23. Rc1 {[%emt 0:00:04]} Rc6 {[%emt 0:07:06] White leaves nothing to chance now.} (23... Rb8 $11) 24. Rb1 $18 {[%emt 0:05:03]} Nc2 {[%emt 0:00:20]} 25. Ba5 $40 {[%emt 0:01:15][%mdl 128] White wants a kill.} Nxd4 {[%emt 0:11:06]} (25... Nc7 $142 26. Bxb6 Nxb5) 26. Qxb6 {[%emt 0:14:10][%mdl 64] Remove Defender} axb6 {[%emt 0:05:33]} 27. Nxd4 {[%emt 0:00:02]} Rc4 {[%emt 0:00:04]} 28. Bxb6 {[%emt 0:00:05] Black must now prevent a5.} Rxa4 {[%emt 0:00:04]} 29. Rc1 {[%emt 0:01:30][%cal Rc1c8]} f6 $2 {[%emt 0:01:48]} (29... g5 30. Rb1 Nb4) 30. exf6 {[%emt 0:02:16]} e5 {[%emt 0:01:05]} 31. Rc8+ {[%emt 0:00:09]} Kf7 {[%emt 0:00:05] [#]} 32. fxg7 $1 {[%emt 0:00:46]} Kxg7 {[%emt 0:00:09]} 33. Ne6+ {[%emt 0:01:30]} Kf6 {[%emt 0:00:11]} 34. Nc5 {[%emt 0:02:01]} Nxc5 {[%emt 0:00:30]} (34... Rc4 35. f4 exf4 36. gxf4 h5) 35. Rxc5 {[%emt 0:00:11][%mdl 4096] Endgame KRB-KR. White is clearly winning.} Ra6 {[%emt 0:01:28]} 36. Bd8+ {[%emt 0:00:40]} Ke6 {[%emt 0:00:05]} 37. Rc7 {[%emt 0:00:03]} Rd6 {[%emt 0:00:41]} 38. Re7+ {[%emt 0:01:52]} Kf6 {[%emt 0:00:14]} 39. Rd7+ {[%emt 0:00:12]} Ke6 {[%emt 0:00:04] [#]} 40. Rxd6+ $1 {[%emt 0:00:03]} Kxd6 {[%emt 0:00:03] KB-KP} 41. Kf3 {[%emt 0:00:12]} b5 {[%emt 0:00:09]} 42. Ke3 {[%emt 0:00:08]} Kc5 {[%emt 0:00:12]} 43. f4 {[%emt 0:01:24]} d4+ {[%emt 0:00:56]} 44. Kd3 {[%emt 0:00:08]} Kd5 {[%emt 0:00:14]} 45. fxe5 {[%emt 0:00:22]} Kxe5 {[%emt 0:00:04]} 46. Bb6 {[%emt 0:00:05]} Kf5 {[%emt 0:00:03] Weighted Error Value: White=0.11 (very precise) /Black=0.49} 1-0

[Event "14th BPB Limburg Open 2022"]
[Site "Maastricht"]
[Date "2022.06.05"]
[Round "5.10"]
[White "Bodicky, Michal"]
[Black "Fischer, Daniel"]
[Result "0-1"]
[ECO "E15"]
[WhiteElo "2106"]
[BlackElo "2367"]
[Annotator "TA"]
[PlyCount "126"]
[EventDate "2022.06.03"]
[EventType "swiss"]
[EventCountry "NED"]
[SourceTitle "playchess.com"]
[Source "ChessBase"]
[SourceQuality "1"]
[TimeControl "7200+15"]

{[%evp 21,126,7,20,-27,-18,-24,-18,-20,-20,-26,-31,-29,-6,-35,-26,-6,0,0,0,0,0,0,0,0,0,0,0,0,0,0,0,0,0,0,0,0,0,0,0,0,0,-10,-12,-102,-110,-95,-108,-124,-106,-252,-251,-251,-251,-399,-110,-157,-135,-127,-129,-128,-118,-133,-130,-121,-129,-126,-116,-213,-134,-244,-229,-338,-334,-319,-222,-229,-229,-407,-229,-570,-218,-425,-425,-381,-231,-233,-218,-235,-222,-220,-213,-224,-225,-6138,-5518,-6306,-5427,-5201,-766,-5193,-5169,-29982,-29983,-29983,-29984,-29985,-29986]} 1. d4 {[%emt 0:00:07]} Nf6 {[%emt 0:00:06]} 2. c4 {[%emt 0:00:05]} e6 {[%emt 0:00:05]} 3. Nf3 {[%emt 0:00:06]} b6 {[%emt 0:01:22]} 4. g3 {[%emt 0:00:14]} Ba6 {[%emt 0:00:32]} 5. b3 {[%emt 0:00:34]} Bb4+ {[%emt 0:00:15]} 6. Bd2 {[%emt 0:00:20]} Be7 {[%emt 0:00:06]} 7. Bg2 {[%emt 0:00:30]} O-O {[%emt 0:00:11]} 8. Ne5 {[%emt 0:03:00]} d5 {[%emt 0:01:22]} 9. O-O {[%emt 0:00:32]} Bb7 {[%emt 0:02:40]} 10. Bc3 {[%emt 0:03:18]} Nbd7 {[%emt 0:02:59]} 11. Nd2 {[%emt 0:01:56]} c5 {[%emt 0:05:53]} 12. cxd5 {[%emt 0:06:48] E15: Queen's Indian: 4 g3 sidelines, 4 g3 Ba6 and 4 g3 Bb7 early deviations.} (12. e3 $142) 12... Nxd5 $11 {[%emt 0:13:17]} 13. Bb2 {[%emt 0:01:42]} Nxe5 {[%emt 0:08:01]} 14. dxe5 {[%emt 0:00:06] The position is equal.} Qc7 {[%emt 0:00:36]} 15. a3 {[%emt 0:09:13]} b5 {[%emt 0:01:16]} 16. Qc2 {[%emt 0:02:29] [#]} Rac8 $146 {[%emt 0:02:32]} ({Predecessor:} 16... Nb6 17. Ne4 Nd7 18. f4 f6 19. exf6 Nxf6 20. Nxf6+ gxf6 21. e4 Rac8 22. Qe2 f5 23. exf5 exf5 24. Qxb5 Bxg2 25. Kxg2 {1-0 (52) Haenisch,C (1893)-Ehrich,D (1679) Naumburg Saale 2014}) 17. Rac1 {[%emt 0:04:18]} Qb8 {[%emt 0:03:10]} 18. Rfd1 {[%emt 0:11:32]} c4 {[%emt 0:02:31]} 19. bxc4 {[%emt 0:04:46]} bxc4 {[%emt 0:00:05]} 20. Ne4 {[%emt 0:06:58] Prevents c3.} ({Wrong is} 20. Nxc4 $2 Nb6 21. Bxb7 Rxc4 $19) 20... c3 {[%emt 0:12:01]} (20... Rfd8 {keeps more tension.} 21. Nd6 Bxd6 22. exd6 c3) 21. Nxc3 {[%emt 0:03:40]} Nxc3 {[%emt 0:01:13]} (21... Ba8 {looks sharper.} 22. a4 Rfd8 23. Bf3 Bg5) 22. Bxc3 {[%emt 0:02:51] aiming for Rb1.} Bxg2 {[%emt 0:00:13]} 23. Kxg2 {[%emt 0:00:29]} Bxa3 {[%emt 0:00:50]} 24. Rb1 {[%emt 0:01:17]} Qc7 {[%emt 0:00:33]} 25. Rb3 {[%emt 0:02:31]} Be7 {[%emt 0:05:58]} 26. Qe4 {[%emt 0:03:21]} Rb8 {[%emt 0:05:34] Inhibits Qb7.} 27. Rdb1 {[%emt 0:03:49][%cal Oc3a5] Ba5! is the strong threat.} Rxb3 {[%emt 0:00:27]} 28. Rxb3 {[%emt 0:00:02]} Rb8 {[%emt 0:03:38]} 29. Ba5 {[%emt 0:06:05]} Qc8 {[%emt 0:00:16]} 30. Rc3 {[%emt 0:12:42]} Qa6 {[%emt 0:04:19]} 31. Bc7 {[%emt 0:02:21]} Rc8 {[%emt 0:03:56]} 32. Qc2 {[%emt 0:00:48]} (32. Qf3 $11 {keeps the balance.}) 32... Bb4 $1 $17 {[%emt 0:07:11]} 33. Rc4 {[%emt 0:00:54]} Qb5 {[%emt 0:04:10]} 34. e4 {[%emt 0:07:37]} g6 {[%emt 0:03:06]} 35. Rd4 {[%emt 0:04:25] [#]} (35. Qb3 $17 {might work better.} a5 36. h3) 35... Ba5 $1 $19 {[%emt 0:03:03]} 36. Rc4 {[%emt 0:00:41]} Bb6 {[%emt 0:01:06] Inhibits Rc5.} 37. Rc3 {[%emt 0:01:35]} (37. Rc6 $142) 37... Bd4 $2 {[%emt 0:01:57]} (37... Qa5 $19 {[%cal Rc8c7] and Black stays clearly on top.} 38. Qd3 Bxc7) 38. Rb3 {[%emt 0:01:30]} ({Better is} 38. Rc4 Bxe5 39. Rc5 Rxc7 40. Rxb5 Rxc2 41. Rxe5) 38... Qd7 {[%emt 0:04:05]} ({Weaker is} 38... Rxc7 39. Qxc7 Qxb3 40. Qd8+ Kg7 41. Qf6+ Kh6 42. Qh4+ Kg7 43. Qf6+ Kh6 44. Qh4+ Kg7 45. Qf6+ $11) 39. Rb8 {[%emt 0:00:57]} Kg7 {[%emt 0:04:28]} 40. Bd6 {[%emt 0:01:36]} Rxb8 {[%emt 0:02:19]} ({Don't play} 40... Rxc2 $6 41. Bf8+ Kh8 42. Bc5+ Kg7 43. Bf8+ Kh8 44. Bc5+ Kg7 45. Bf8+ $11) 41. Bxb8 $17 {[%emt 0:00:03][%mdl 4096] Endgame KQB-KQB} Qb5 $36 {[%emt 0:04:59][%csl LRb8,LRe5][%mdl 2048] White is under strong pressure.} 42. Bd6 {[%emt 0:04:45]} Bxe5 {[%emt 0:00:22]} 43. Ba3 {[%emt 0:00:20]} Qb7 {[%emt 0:00:57]} 44. Kh3 {[%emt 0:00:26]} (44. Bc5 $17) 44... h5 {[%emt 0:00:29] Strongly threatening ...Qa6.} 45. f4 {[%emt 0:01:11]} (45. Qc5 $17 {keeps fighting.} Bf6 46. f4) 45... Bd4 $19 {[%emt 0:00:26]} 46. Qd3 {[%emt 0:01:03]} (46. Qe2 {is a better defense.}) 46... e5 {[%emt 0:00:51]} 47. fxe5 {[%emt 0:01:17]} Qc8+ {[%emt 0:00:02]} 48. Kg2 {[%emt 0:00:16]} Bxe5 {[%emt 0:00:01]} 49. Qd5 $2 {[%emt 0:00:59]} (49. Bb4 {was the only chance.}) 49... Qc3 {[%emt 0:01:04]} (49... Qc2+ $142 50. Kh3 Bf6) 50. Be7 $2 {[%emt 0:00:58]} (50. Bb4 Qc2+ 51. Kf3) 50... Bf6 $2 {[%emt 0:00:42]} (50... Bd4 {White must now prevent ...Qb2+.} 51. Bd6 a5) 51. Bc5 $2 {[%emt 0:00:24]} (51. Bxf6+ Kxf6 52. Qd6+ Kg7 53. e5) 51... a5 {[%emt 0:00:29]} 52. Qd6 {[%emt 0:00:44]} Qc4 {[%emt 0:00:43]} 53. e5 {[%emt 0:00:33]} Qe4+ {[%emt 0:00:23]} 54. Kg1 {[%emt 0:00:18]} Qxe5 {[%emt 0:00:27]} 55. Qf8+ {[%emt 0:00:07]} Kh7 {[%emt 0:00:03]} 56. Qxf7+ {[%emt 0:00:02] [#]} Bg7 $1 {[%emt 0:00:04]} 57. Be7 {[%emt 0:01:18]} (57. Qa7 a4 58. Kg2) 57... a4 {[%emt 0:00:44][%cal Ba5a4,Ba4a3][%mdl 32]} 58. Kg2 {[%emt 0:00:13]} Qb2+ {[%emt 0:00:25]} 59. Kh3 {[%emt 0:00:21]} Qd4 {[%emt 0:00:15]} (59... Qb3 $142 60. Qxb3 axb3) 60. Kg2 {[%emt 0:00:16]} Qd7 {[%emt 0:00:22]} 61. h4 {[%emt 0:01:24]} a3 {[%emt 0:00:09] Black mates.} 62. g4 {[%emt 0:00:17]} Qxg4+ {[%emt 0:00:05]} 63. Kh2 {[%emt 0:00:23]} Qd7 {[%emt 0:00:05] Weighted Error Value: White=0.79/Black=0.31} 0-1

[Event "14th BPB Limburg Open 2022"]
[Site "Maastricht"]
[Date "2022.06.05"]
[Round "5.11"]
[White "Van Meegen, Ruud"]
[Black "Roebers, Eline"]
[Result "1/2-1/2"]
[ECO "E60"]
[WhiteElo "2275"]
[BlackElo "2369"]
[Annotator "TA"]
[PlyCount "36"]
[EventDate "2022.06.03"]
[EventType "swiss"]
[EventCountry "NED"]
[SourceTitle "playchess.com"]
[Source "ChessBase"]
[SourceQuality "1"]
[TimeControl "7200+15"]

{[%evp 20,22,28,20,26]} 1. Nf3 {[%emt 0:00:03]} Nf6 {[%emt 0:00:03]} 2. g3 {[%emt 0:00:06]} g6 {[%emt 0:00:03]} 3. b3 {[%emt 0:00:04]} Bg7 {[%emt 0:00:03]} 4. Bb2 {[%emt 0:00:04]} O-O {[%emt 0:00:04]} 5. Bg2 {[%emt 0:00:07]} c5 {[%emt 0:01:02]} 6. c4 {[%emt 0:01:55]} Nc6 {[%emt 0:02:25]} 7. O-O {[%emt 0:00:26]} d6 {[%emt 0:00:59]} 8. d4 {[%emt 0:00:31]} a6 {[%emt 0:01:12]} 9. Nc3 {[%emt 0:02:14]} cxd4 {[%emt 0:04:49]} 10. Nxd4 {[%emt 0:00:10]} Bd7 {[%emt 0:00:26]} 11. Rc1 {[%emt 0:09:50]} Rb8 {[%emt 0:03:46] [#] An uneventful encounter. was the old line (11...Rc8). E60: King's Indian: Unusual lines and Fianchetto Variation without Nc3.} {Predecessor:} 12. h3 $146 Nxd4 13. Qxd4 b5 14. Nd5 bxc4 15. Rxc4 Bb5 16. Rc2 Nh5 17. Qe3 e6 18. Bxg7 Nxg7 {1-0 (45) Aditya,M (2438)-Arakhamia Grant,K (2380) Chess.com INT 2021} 1/2-1/2

[Event "14th BPB Limburg Open 2022"]
[Site "Maastricht"]
[Date "2022.06.05"]
[Round "5.12"]
[White "Kucharska, Honorata"]
[Black "Ondersteijn, Niels"]
[Result "0-1"]
[ECO "E62"]
[WhiteElo "2181"]
[BlackElo "2376"]
[Annotator "TA"]
[PlyCount "128"]
[EventDate "2022.06.03"]
[EventType "swiss"]
[EventCountry "NED"]
[SourceTitle "playchess.com"]
[Source "ChessBase"]
[SourceQuality "1"]
[TimeControl "7200+15"]

{[%evp 19,128,13,11,0,2,0,14,-4,13,6,13,-37,-34,-39,-39,-43,-31,-47,-29,-22,-22,-26,-22,-22,-21,-25,-34,-30,-7,-5,-8,-8,-9,-36,-39,-37,-36,-49,-42,-60,-44,-39,-50,-51,-47,-54,-53,-64,-51,-73,0,0,0,-25,-25,-25,-25,-32,-32,-39,-39,-39,-39,-39,-39,-39,-32,-42,-39,-40,-31,-39,-39,-39,0,-39,-32,-39,-27,-39,-39,-59,-54,-65,-59,-1502,-1833,-974,-884,-1574,-1311,-2309,-959,-2309,-2315,-495,-5353,-6412,-5977,-6090,-5909,-5181,-2631,-4134,-2399,-29982,-29983,-29983,-29984,-29984,-29985]} 1. d4 {[%emt 0:00:09]} d6 {[%emt 0:00:29]} 2. Nf3 {[%emt 0:00:19]} Nf6 {[%emt 0:00:20]} 3. g3 {[%emt 0:00:15]} g6 {[%emt 0:00:08]} 4. Bg2 {[%emt 0:00:05]} Bg7 {[%emt 0:00:05]} 5. c4 {[%emt 0:00:22]} O-O {[%emt 0:00:23]} 6. O-O {[%emt 0:00:08]} Nc6 {[%emt 0:00:05]} 7. Nc3 {[%emt 0:00:25]} e5 {[%emt 0:00:17]} 8. dxe5 {[%emt 0:09:02]} Nxe5 {[%emt 0:00:49]} 9. Nxe5 {[%emt 0:00:38]} dxe5 {[%emt 0:00:06]} 10. Qc2 {[%emt 0:00:58]} c6 {[%emt 0:04:11]} 11. Rd1 {[%emt 0:01:48] E62: King's Indian: Fianchetto: 6...c6 and Panno Variation (6...Nc6) without ...a6.} Qc7 {[%emt 0:02:13]} 12. Bg5 {[%emt 0:07:44]} Be6 {[%emt 0:08:36]} 13. c5 {[%emt 0:05:50] The position is equal.} h6 {[%emt 0:22:15]} 14. Bxf6 {[%emt 0:02:51]} Bxf6 {[%emt 0:00:02]} 15. Ne4 {[%emt 0:00:06]} ({White should play} 15. Rd6 $11) 15... Be7 $1 $15 {[%emt 0:02:59] [#]} 16. Nd6 $146 {[%emt 0:05:46]} ({Predecessor:} 16. Rd2 Rad8 17. Rad1 Rxd2 18. Rxd2 Rd8 19. Qd1 Rxd2 20. Qxd2 Bxa2 21. Qxh6 Qd8 22. Qc1 {0-1 (29) Raceanu,V-Florean,A (2220) Romania 1994}) 16... Rfd8 {[%emt 0:02:42][%cal Re7d6]} 17. Qd2 {[%emt 0:04:08]} Kh7 {[%emt 0:07:29]} 18. h4 {[%emt 0:01:26][%cal Oh4h5]} Rd7 {[%emt 0:05:57]} (18... b6 $5 {[%cal Rb6c5]} 19. Qc2 bxc5 $11) 19. h5 $1 {[%emt 0:07:14]} Rad8 {[%emt 0:02:37][%cal Re7d6]} 20. hxg6+ {[%emt 0:04:02]} fxg6 {[%emt 0:00:06][%cal Re7d6]} 21. Qe3 {[%emt 0:09:21]} Bxd6 {[%emt 0:01:42]} 22. cxd6 {[%emt 0:00:04]} Rxd6 {[%emt 0:09:36]} 23. Rxd6 {[%emt 0:00:04]} Rxd6 {[%emt 0:00:18]} 24. Qxa7 {[%emt 0:00:06]} Rd2 {[%emt 0:03:25][%csl LRb2,LRe2]} 25. Rc1 {[%emt 0:02:01][%cal Oc1c6]} Qd7 {[%emt 0:02:08]} 26. Qe3 {[%emt 0:02:57]} Bxa2 {[%emt 0:06:37]} 27. Qxe5 {[%emt 0:00:23]} Qg7 {[%emt 0:02:14]} 28. Qe3 {[%emt 0:06:02]} Qxb2 {[%emt 0:01:18]} 29. Re1 {[%emt 0:00:12]} Qd4 {[%emt 0:05:05]} 30. Qe7+ {[%emt 0:00:07]} Qg7 {[%emt 0:00:05]} 31. Qe3 {[%emt 0:00:16]} Rd7 {[%emt 0:04:53]} 32. Qa3 {[%emt 0:02:48]} Be6 {[%emt 0:04:20]} 33. Bf3 {[%emt 0:06:29]} Qe5 {[%emt 0:04:42]} 34. Rc1 {[%emt 0:01:18]} Bd5 {[%emt 0:03:15] Black is more active.} ({Better is} 34... h5 $17) 35. Rd1 $1 $11 {[%emt 0:06:50]} Be6 {[%emt 0:03:45]} 36. Rxd7+ {[%emt 0:00:49]} Bxd7 {[%emt 0:00:01][%mdl 4096] Endgame KQB-KQB} 37. Qa7 {[%emt 0:01:17]} Qc7 {[%emt 0:00:12]} 38. Qc5 {[%emt 0:00:37]} Be8 {[%emt 0:01:05]} 39. Qe3 {[%emt 0:07:38]} Bf7 {[%emt 0:00:59] Hoping for ...c5.} 40. Qc5 {[%emt 0:00:19]} Qd7 {[%emt 0:00:35]} 41. Kg2 {[%emt 0:02:08]} Bd5 {[%emt 0:00:54]} 42. e4 {[%emt 0:01:02]} Be6 {[%emt 0:00:05]} 43. e5 {[%emt 0:02:39]} Kg7 {[%emt 0:00:33]} 44. Kh2 {[%emt 0:01:09]} h5 {[%emt 0:00:45]} 45. Bg2 {[%emt 0:02:15]} Kf7 {[%emt 0:01:36]} 46. Qe3 {[%emt 0:00:46]} Kg7 {[%emt 0:00:50]} 47. Qc5 {[%emt 0:01:59]} Qc7 {[%emt 0:00:18]} 48. f4 {[%emt 0:01:36]} Qf7 {[%emt 0:02:00]} 49. Qd4 {[%emt 0:00:27]} Qe7 {[%emt 0:01:13]} 50. Be4 {[%emt 0:03:12]} h4 {[%emt 0:00:33]} 51. Qd3 {[%emt 0:00:36] Prevents Qa3.} Qc5 {[%emt 0:01:29]} 52. Qd2 {[%emt 0:02:07][%mdl 8192] [#] Inhibits Qf2+. White does not recover from this.} (52. Qf3 $15) 52... hxg3+ $1 $19 {[%emt 0:00:36]} 53. Kxg3 {[%emt 0:00:04]} Qg1+ {[%emt 0:00:32]} 54. Qg2 {[%emt 0:00:58]} Qxg2+ {[%emt 0:00:10]} ({And not} 54... Qe3+ 55. Qf3 Qe1+ 56. Kh2 $19) 55. Bxg2 {[%emt 0:00:06] KB-KB} Bd5 {[%emt 0:00:34]} (55... b5 $142 56. Kf2 Bd5) 56. Bf1 {[%emt 0:01:55]} b5 {[%emt 0:00:03]} 57. Kf2 {[%emt 0:00:09]} b4 {[%emt 0:00:41]} 58. Ke3 {[%emt 0:00:46]} c5 {[%emt 0:00:17]} 59. Kd2 {[%emt 0:00:51]} Be6 {[%emt 0:01:28] [#] Strongly threatening ...c4.} 60. Bd3 {[%emt 0:00:36]} Kh6 {[%emt 0:00:05]} 61. Kc2 {[%emt 0:00:09]} Kh5 {[%emt 0:00:27] ( -> ...Kg4)} 62. Kb2 {[%emt 0:01:01]} Kg4 {[%emt 0:00:18] Black mates.} 63. Bxg6 {[%emt 0:00:09]} Kxf4 {[%emt 0:00:02]} 64. Bh7 {[%emt 0:00:07]} Kxe5 {[%emt 0:00:03] Weighted Error Value: White=0.44/Black=0.21 (precise)} 0-1